bitfinex/quotes_ETHUSD_20240828
["timestamp","ask_amount","ask_price","bid_price","bid_amount"]
[1724817961031,4.05083085,2483.9,2483.1,4.6259]
[1724817961237,4.05083085,2483.9,2483.2,0.08052719]
[1724817961562,4.05083085,2484.5,2483.3,4.70642629]
[1724817961763,4.15146824,2484.5,2483.3,4.70642629]
[1724817961923,4.15146824,2484.5,2483.5,4.6259]
[1724817962115,4.05083085,2484.3,2483.6,0.08051199]
[1724817963866,4.9248,2484.6,2483.5,4.6259]
[1724817963867,4.05083085,2483.9,2483.5,4.6259]
[1724817964022,0.10065068,2483.8,2483.0,4.6259]
[1724817964557,4.05083085,2483.9,2483.0,4.6259]
[1724817965065,4.05083085,2483.7,2483.0,4.6259]
[1724817965363,4.05083085,2483.7,2483.1,0.08052801]
[1724817965519,4.05083085,2483.9,2483.1,0.08052801]
[1724817965955,8.66965,2485.0,2483.1,0.08052801]
[1724817965956,4.05083085,2484.1,2483.2,4.8379]
[1724817966168,4.05083085,2484.1,2483.3,0.08052307]
[1724817966834,4.05083085,2483.9,2483.2,4.8379]
[1724817967037,4.05083085,2483.9,2483.3,0.48379]
[1724817973033,4.05083085,2483.9,2483.4,0.08052323]
[1724817974155,4.05083085,2483.9,2483.3,0.48379]
[1724817974377,4.05083085,2483.9,2483.3,0.56431325]
[1724817974880,4.05083085,2484.1,2483.3,0.56431325]
[1724817975043,0.10065412,2484.0,2483.3,0.56431325]
[1724817976040,0.10065412,2484.0,2483.4,4.5922]
[1724817976780,4.05083085,2483.9,2483.4,4.5922]
[1724817976980,0.10065653,2483.8,2483.4,4.5922]
[1724817977490,5.14710527,2483.8,2483.1,11.45545182]
[1724817977643,0.10066619,2483.7,2483.1,11.45545182]
[1724817978458,0.10066429,2483.8,2483.1,11.45545182]
[1724817978658,0.10066429,2483.8,2483.2,0.08053143]
[1724817979264,0.10066429,2483.8,2483.1,12.600997]
[1724817979468,0.10066429,2483.8,2483.2,0.08053143]
[1724817981566,4.707,2484.5,2483.3,4.7789]
[1724817981771,8.80207114,2484.9,2483.6,4.6419]
[1724817981971,4.6506,2485.6,2483.9,4.05083085]
[1724817982183,4.05083085,2485.4,2484.0,4.7223849]
[1724817982406,0.10060633,2485.3,2484.2,4.7866]
[1724817982689,0.10060633,2485.3,2484.3,0.08048506]
[1724817984319,4.6043,2485.9,2484.7,4.05083085]
[1724817984606,0.10058078,2485.9,2484.9,4.7866]
[1724817984804,0.10058078,2485.9,2485.0,0.08046462]
[1724817986068,4.05083085,2485.7,2485.0,0.08046462]
[1724817986271,4.05083085,2486.4,2484.9,4.7866]
[1724817986272,4.05083085,2485.3,2484.9,4.7866]
[1724817987808,4.05083085,2485.1,2484.4,4.9889]
[1724817988617,0.40508308,2485.6,2484.4,4.9889]
[1724817988618,4.05083085,2484.9,2484.4,4.9889]
[1724817988780,4.05083085,2485.1,2484.5,1.27276191]
[1724817989173,4.05083085,2485.1,2484.5,1.19227518]
[1724817989507,4.05083085,2485.1,2484.6,0.61811752]
[1724817994918,4.05083085,2485.1,2484.6,0.69860429]
[1724817995225,4.05083085,2485.1,2484.6,0.61811752]
[1724817997136,4.05083085,2485.1,2484.7,4.9684]
[1724818000043,4.05083085,2485.3,2484.7,4.9684]
[1724818000325,0.10060857,2485.2,2484.7,4.9684]
[1724818000703,4.05083085,2485.1,2484.7,4.9684]
[1724818001427,4.05083085,2485.1,2484.7,5.5925162]
[1724818002609,4.05083085,2485.1,2484.7,0.6241162]
[1724818002795,4.05083085,2485.1,2484.5,1.19227518]
[1724818003013,4.05083085,2484.9,2484.4,4.6286]
[1724818003353,4.9121,2484.5,2483.4,4.6286]
[1724818003635,4.9121,2484.5,2482.9,6.93385182]
[1724818003636,4.05083085,2483.6,2483.1,4.6286]
[1724818015811,4.05083085,2483.6,2482.9,11.61185182]
[1724818021074,4.05083085,2483.6,2482.9,4.678]
[1724818021075,0.10066475,2483.5,2482.9,4.678]
[1724818021271,9.35667657,2483.8,2483.0,0.08053766]
[1724818021589,0.42174572,2483.8,2483.1,4.6219]
[1724818021870,0.42174572,2483.8,2483.2,0.08052359]
[1724818022076,0.42174572,2483.8,2483.2,0.55076595]
[1724818022248,0.42174572,2483.8,2483.3,0.08052369]
[1724818023260,4.47257657,2483.8,2483.2,0.47024236]
[1724818023446,4.05083085,2483.4,2482.5,5.0073]
[1724818023646,4.1515044,2483.4,2482.5,5.0073]
[1724818023878,4.1515044,2483.4,2482.6,1.19411518]
[1724818024379,4.05083085,2483.0,2482.5,5.0073]
[1724818024589,4.05083085,2483.0,2482.4,6.93385182]
[1724818025449,9.26489284,2483.4,2482.5,0.08054738]
[1724818025643,0.1006779,2483.3,2482.5,1.19164992]
[1724818025945,4.05083085,2483.2,2482.5,1.19164992]
[1724818026346,5.21406199,2483.4,2482.6,0.08054241]
[1724818026347,9.26489284,2483.4,2482.6,0.08054241]
[1724818026549,9.26489284,2483.4,2482.6,0.90114683]
[1724818028083,9.26489284,2483.4,2482.6,0.82060442]
[1724818028254,4.05083085,2483.2,2482.6,0.82060442]
[1724818029451,4.05083085,2483.2,2482.7,0.08054725]
[1724818029790,0.10067797,2483.3,2482.7,0.28982741]
[1724818030147,0.42176199,2483.4,2482.8,0.08054722]
[1724818031263,4.47259284,2483.4,2482.8,0.08054722]
[1724818032414,4.47259284,2483.4,2482.7,5.17548016]
[1724818032691,0.10067195,2483.3,2482.7,5.17548016]
[1724818032900,0.10067195,2483.3,2482.8,0.68014995]
[1724818033854,4.47259284,2483.4,2482.8,0.68014995]
[1724818034258,0.42176199,2483.4,2482.8,0.68014995]
[1724818037699,4.47259284,2483.4,2482.8,0.59960846]
[1724818037873,4.47259284,2483.4,2482.9,0.08053771]
[1724818038075,4.47259284,2483.4,2482.9,0.66610034]
[1724818039098,4.47259284,2483.4,2482.9,0.58556263]
[1724818039274,4.47259284,2483.4,2482.8,0.08054166]
[1724818046673,4.05083085,2483.1,2482.4,6.93385182]
[1724818046886,4.05083085,2482.8,2482.4,6.93385182]
[1724818047083,4.05083085,2482.8,2482.2,4.9153]
[1724818047375,4.05083085,2482.8,2482.3,4.0821148]
[1724818047605,4.05083085,2482.8,2482.3,0.57543235]
[1724818047816,0.52250614,2483.0,2482.3,0.57543235]
[1724818047993,0.42181109,2483.0,2482.4,3.58720521]
[1724818048194,0.42181109,2483.0,2482.5,0.41626376]
[1724818048401,4.47264194,2483.0,2482.4,0.91957981]
[1724818048715,4.47264194,2483.0,2482.4,0.08055635]
[1724818049282,4.47264194,2483.0,2482.5,1.40262703]
[1724818049481,4.47264194,2483.0,2482.6,4.7317]
[1724818049989,4.47264194,2483.0,2482.5,0.28976392]
[1724818052484,4.44245194,2483.0,2482.6,0.08055142]
[1724818053183,0.39162109,2483.0,2482.6,0.08055142]
[1724818054119,0.39162109,2483.0,2482.5,0.28976392]
[1724818054120,4.44245194,2483.0,2482.5,0.28976392]
[1724818054330,4.44245194,2483.0,2482.3,5.30713235]
[1724818054331,0.10069562,2482.9,2482.3,5.30713235]
[1724818054501,4.05083085,2482.8,2482.3,5.30713235]
[1724818054997,4.05083085,2482.8,2482.3,0.57543235]
[1724818055199,0.39162109,2483.0,2482.2,0.83902346]
[1724818055200,4.05083085,2482.6,2482.2,0.83902346]
[1724818055415,0.10071102,2482.5,2482.0,0.83902346]
[1724818055620,0.10071102,2482.5,2482.1,3.5070304]
[1724818055793,4.15154187,2482.6,2482.2,0.43460539]
[1724818055995,4.05083085,2482.6,2482.1,0.08056878]
[1724818056297,0.10071097,2482.6,2482.1,0.08056878]
[1724818056523,4.05083085,2482.8,2482.2,1.40275392]
[1724818056743,4.05083085,2482.8,2482.3,0.08056064]
[1724818057246,4.05083085,2482.6,2482.1,1.5450262]
[1724818057454,4.05083085,2482.6,2481.9,6.14043519]
[1724818057455,4.05083085,2482.8,2482.2,1.48332349]
[1724818057743,9.29155194,2483.0,2482.3,6.22791409]
[1724818057928,9.29155194,2483.0,2482.4,0.71140504]
[1724818060219,0.10069595,2482.9,2482.4,0.71140504]
[1724818060412,4.05083085,2482.8,2482.4,0.71140504]
[1724818061725,9.29155194,2483.0,2482.4,0.71140504]
[1724818063650,2.46437302,2482.7,2482.4,0.63084823]
[1724818063810,2.46437302,2482.7,2482.2,0.08055922]
[1724818067903,4.05083085,2482.9,2482.2,0.08055922]
[1724818068067,4.05083085,2482.9,2482.2,1.25255032]
[1724818068355,4.05083085,2482.9,2482.3,0.08055834]
[1724818069468,4.05083085,2482.9,2482.4,4.9091]
[1724818069766,4.05083085,2482.9,2482.5,0.08055179]
[1724818072670,0.10068999,2482.8,2482.4,4.9091]
[1724818072884,4.05083085,2482.9,2482.5,0.08056009]
[1724818073175,4.05083085,2482.9,2482.4,0.08055186]
[1724818073339,4.05083085,2482.9,2482.4,0.65380097]
[1724818074037,1.68711719,2482.7,2482.4,0.65380097]
[1724818077260,1.68711719,2482.7,2482.3,4.5605]
[1724818077261,1.68711719,2482.5,2482.2,1.1719911]
[1724818079269,1.68711719,2482.7,2482.2,1.1719911]
[1724818079580,1.68711719,2482.7,2482.3,1.28546429]
[1724818080086,1.68711719,2482.5,2482.3,1.28546429]
[1724818080291,1.68711719,2482.5,2482.1,11.68265182]
[1724818080458,1.68711719,2482.3,2482.1,6.93385182]
[1724818080657,1.68711719,2482.3,2481.8,6.93385182]
[1724818080860,4.7355,2482.4,2481.8,1.36785352]
[1724818080861,1.68711719,2482.0,2481.8,1.36785352]
[1724818081084,1.68711719,2482.0,2481.6,4.6214]
[1724818081964,0.10072064,2482.2,2481.6,4.6214]
[1724818082167,0.10072064,2482.2,2481.7,1.23942753]
[1724818083963,4.05128186,2482.1,2481.6,4.6214]
[1724818084168,4.7486,2481.6,2481.2,20.19287528]
[1724818084379,4.7486,2481.6,2481.1,0.83902346]
[1724818084579,4.05128186,2481.5,2481.0,0.83902346]
[1724818084901,4.15202417,2481.5,2481.1,2.67068111]
[1724818085109,4.05128186,2481.3,2480.9,4.9007]
[1724818085554,4.05128186,2481.3,2480.6,4.6648]
[1724818085762,4.05128186,2481.3,2480.7,1.40353249]
[1724818085958,4.15202417,2481.5,2480.6,4.6648]
[1724818086158,4.15202417,2481.5,2480.7,4.05917807]
[1724818086394,4.15202417,2481.5,2480.7,0.55038235]
[1724818087406,4.05128186,2481.7,2480.9,4.787]
[1724818087609,8.57248186,2481.9,2481.0,0.08059419]
[1724818087760,0.10074274,2481.8,2481.0,7.55335725]
[1724818088378,4.05128186,2481.7,2481.0,7.55335725]
[1724818088915,0.10074049,2481.6,2481.0,7.47276306]
[1724818089114,8.59348186,2481.5,2481.0,7.47276306]
[1724818089621,4.05128186,2481.3,2481.0,6.93385182]
[1724818089838,4.05128186,2481.1,2480.3,11.70465182]
[1724818090118,4.6327,2480.8,2480.4,1.25436753]
[1724818090318,0.10078564,2480.7,2480.4,1.25436753]
[1724818090675,8.89648186,2481.1,2480.5,0.81882194]
[1724818091180,4.8452,2481.1,2480.5,0.81882194]
[1724818091810,4.05128186,2481.5,2480.6,0.08061864]
[1724818092115,0.10075834,2481.4,2480.6,0.6277127]
[1724818092996,7.46884749,2481.5,2480.6,0.6277127]
[1724818094220,7.46884749,2481.5,2480.6,0.54709406]
[1724818094221,4.05128186,2481.3,2480.6,0.54709406]
[1724818094404,0.04039891,2481.2,2480.5,0.81882194]
[1724818095494,4.5822,2481.0,2480.5,0.81882194]
[1724818096091,8.63348186,2481.3,2480.5,5.37972194]
[1724818096313,0.04039891,2481.2,2480.5,5.37972194]
[1724818097022,4.05128186,2481.1,2480.5,5.37972194]
[1724818097227,0.04039891,2481.0,2480.5,5.37972194]
[1724818097517,4.05128186,2481.1,2480.5,5.37972194]
[1724818097683,4.05128186,2481.1,2480.6,0.53797219]
[1724818099361,0.04039891,2481.2,2480.6,0.6185872]
[1724818099557,0.04039891,2481.2,2480.6,0.53797219]
[1724818099762,0.04039891,2481.2,2480.6,0.61858721]
[1724818099944,0.04039891,2481.2,2480.6,0.53797219]
[1724818100128,0.04039891,2481.2,2480.7,0.59176941]
[1724818101161,0.04039891,2481.2,2480.5,0.81882194]
[1724818101362,0.04039891,2481.2,2480.3,6.93385182]
[1724818101363,8.68738186,2481.1,2480.3,11.65755182]
[1724818101526,0.04039891,2481.0,2480.4,1.16575518]
[1724818102071,0.04039891,2481.0,2480.5,0.08061968]
[1724818103036,4.05128186,2481.3,2480.6,4.8583]
[1724818103329,0.04039891,2481.2,2480.7,0.49389197]
[1724818107754,4.05128186,2481.5,2480.8,0.08061538]
[1724818107927,0.04039891,2481.4,2480.8,0.61583458]
[1724818110742,8.70758186,2481.3,2480.6,11.79215182]
[1724818110946,0.04039891,2481.2,2480.6,11.79215182]
[1724818111449,0.04039891,2481.2,2480.6,6.93385182]
[1724818112882,0.04039891,2481.2,2480.5,1.0]
[1724818113112,0.04039891,2481.2,2480.5,1.60347]
[1724818115278,4.05128186,2481.1,2480.5,1.60347]
[1724818115428,0.04039891,2481.0,2480.5,1.60347]
[1724818116735,4.845,2480.9,2480.5,1.0]
[1724818117144,0.04039891,2480.8,2480.5,1.0]
[1724818118880,4.845,2480.9,2480.5,1.0]
[1724818118881,0.04039891,2480.9,2480.5,1.0]
[1724818119945,0.04039891,2481.0,2480.5,1.0]
[1724818120255,0.04039891,2481.0,2480.5,1.79338518]
[1724818121470,0.04039891,2481.0,2480.5,1.0]
[1724818126192,1.68982098,2480.7,2480.5,1.0]
[1724818127104,0.04039891,2480.6,2480.5,1.0]
[1724818130372,1.73021989,2480.7,2480.5,1.0]
[1724818131080,1.68982098,2480.7,2480.5,1.0]
[1724818131284,1.73021989,2480.8,2480.5,1.0]
[1724818131599,1.68982098,2480.9,2480.5,1.0]
[1724818131800,1.73021989,2480.9,2480.5,1.0]
[1724818132239,1.68982098,2480.8,2480.5,1.0]
[1724818132705,1.68982098,2480.7,2480.5,1.0]
[1724818135689,0.04039891,2480.6,2480.5,1.0]
[1724818136575,1.68982098,2480.7,2480.5,1.0]
[1724818136879,0.04039891,2480.6,2480.5,1.0]
[1724818139428,5.19178644,2480.7,2480.5,1.0]
[1724818140920,0.19108644,2480.7,2480.5,1.0]
[1724818143288,0.19108644,2480.7,2480.5,6.0271]
[1724818143733,0.19108644,2480.7,2480.5,1.0]
[1724818147832,7.44,2481.2,2480.5,1.60271]
[1724818148137,1.68982098,2481.1,2480.5,1.60271]
[1724818148427,1.68982098,2480.9,2480.5,1.60271]
[1724818149135,6.38032098,2480.9,2480.5,1.0]
[1724818150938,1.68982098,2480.9,2480.5,1.0]
[1724818155512,1.68982098,2481.1,2480.5,1.08062352]
[1724818155735,1.68982098,2481.1,2480.6,6.05873959]
[1724818156047,1.68982098,2481.1,2480.6,4.655]
[1724818156207,7.44,2481.5,2480.6,4.655]
[1724818156208,7.44,2481.5,2480.7,0.0806199]
[1724818156410,1.68982098,2481.6,2480.9,4.655]
[1724818156725,1.68982098,2481.9,2481.1,5.49402346]
[1724818157068,4.8128,2482.2,2481.3,4.655]
[1724818157245,4.8128,2482.2,2481.4,3.5085186]
[1724818157246,1.68982098,2482.0,2481.4,3.5085186]
[1724818157421,1.68982098,2482.0,2481.4,0.0805916]
[1724818159130,1.68982098,2482.0,2481.3,4.655]
[1724818159330,1.68982098,2482.0,2481.4,0.6344821]
[1724818159623,1.68982098,2481.8,2481.4,0.6344821]
[1724818164246,0.16222784,2481.8,2481.4,0.6344821]
[1724818164556,0.16222784,2481.8,2481.3,4.655]
[1724818164557,1.68982098,2481.6,2481.1,6.93385182]
[1724818164758,4.637,2481.8,2480.9,4.6854]
[1724818164759,1.68982098,2481.4,2480.9,4.6854]
[1724818165056,1.68982098,2481.4,2480.9,7.14985956]
[1724818166036,4.637,2481.5,2480.9,7.14985956]
[1724818167317,4.05379268,2481.2,2480.6,4.8662]
[1724818168058,4.05379268,2481.0,2480.5,1.0]
[1724818168219,4.05379268,2481.0,2480.3,6.93385182]
[1724818168554,4.05379268,2480.8,2480.3,6.93385182]
[1724818168717,4.05379268,2480.8,2480.0,12.42]
[1724818168718,4.6146,2480.7,2480.1,6.93385182]
[1724818169043,4.05379268,2480.6,2480.1,8.25975417]
[1724818169630,4.6146,2480.7,2480.1,8.25975417]
[1724818169835,4.6517,2481.0,2480.2,2.14860938]
[1724818170039,4.6517,2481.0,2480.3,4.8893]
[1724818174478,4.05379268,2480.9,2480.2,2.14860938]
[1724818174770,4.92434195,2480.9,2480.2,2.14860938]
[1724818175069,4.05379268,2480.9,2480.2,2.14860938]
[1724818175567,4.6517,2481.0,2480.2,2.14860938]
[1724818176939,4.05379268,2480.9,2480.2,2.14860938]
[1724818177141,4.05379268,2480.9,2480.2,0.08063396]
[1724818179548,4.5621,2481.5,2480.3,4.9322]
[1724818179733,4.05379268,2481.3,2480.4,7.0144717]
[1724818179934,4.05379268,2481.3,2480.5,1.19466717]
[1724818180365,4.05379268,2481.1,2480.4,6.93385182]
[1724818180717,4.79779268,2481.6,2480.4,6.93385182]
[1724818180718,4.05379268,2480.7,2480.4,6.93385182]
[1724818180828,4.771,2480.8,2480.0,4.6978]
[1724818181030,4.771,2480.8,2480.1,1.16316518]
[1724818181231,3.20423509,2480.8,2480.1,1.16316518]
[1724818182230,3.20423509,2480.8,2480.0,4.6978]
[1724818183943,4.05379268,2480.7,2480.0,4.6978]
[1724818184760,4.5734,2481.2,2480.0,4.77843596]
[1724818184945,4.05379268,2480.9,2480.0,4.77843596]
[1724818185151,4.05379268,2480.9,2480.1,1.17122878]
[1724818185739,4.5734,2480.8,2480.1,1.17122878]
[1724818186932,4.05379268,2480.7,2480.1,1.17122878]
[1724818187661,4.05379268,2480.7,2480.0,4.6978]
[1724818188960,4.05379268,2480.5,2480.0,4.6978]
[1724818189168,4.05379268,2480.5,2479.9,6.93385182]
[1724818191803,0.55,2481.1,2479.9,6.93385182]
[1724818191804,4.05379268,2480.3,2479.9,6.93385182]
[1724818192006,0.89015927,2480.2,2479.9,6.93385182]
[1724818192214,4.05379268,2480.3,2479.8,5.8246]
[1724818194192,4.05379268,2480.3,2479.8,1.0]
[1724818196369,4.05379268,2480.1,2479.8,1.0]
[1724818196772,4.05379268,2479.9,2479.8,1.0]
[1724818197210,4.60379268,2479.9,2479.8,1.0]
[1724818197624,4.05379268,2479.9,2479.8,1.0]
[1724818198075,4.8478,2480.4,2479.8,1.0]
[1724818198279,4.05379268,2479.9,2479.8,1.0]
[1724818198908,4.05379268,2480.1,2479.8,1.0]
[1724818199834,4.05379268,2479.9,2479.8,1.0]
[1724818201423,4.05379268,2480.1,2479.8,1.0]
[1724818202876,4.05379268,2479.9,2479.8,1.0]
[1724818210183,4.60379268,2479.9,2479.8,1.0]
[1724818210687,4.257,2479.8,2478.9,6.54645182]
[1724818210887,4.05379268,2479.0,2478.7,4.5853]
[1724818211118,7.44,2479.3,2478.7,4.5853]
[1724818211320,4.05379268,2479.2,2478.9,4.5853]
[1724818211694,4.05379268,2479.0,2478.9,4.5853]
[1724818212786,4.05379268,2479.2,2478.9,4.5853]
[1724818213398,5.20317195,2479.2,2478.9,4.5853]
[1724818214332,4.05379268,2479.2,2478.9,4.5853]
[1724818214629,2.5290574,2479.2,2478.9,4.5853]
[1724818216438,4.04,2479.6,2478.9,4.5853]
[1724818216608,19.2171,2480.2,2479.1,4.7435]
[1724818216935,4.05379268,2480.0,2479.3,4.7435]
[1724818217487,4.7571,2480.5,2479.5,4.5214]
[1724818217688,4.05379268,2480.3,2479.7,4.5214]
[1724818217929,8.8342,2480.8,2479.8,0.08065014]
[1724818217930,4.05379268,2480.5,2479.8,0.08065014]
[1724818218235,4.04,2480.8,2479.9,4.5214]
[1724818218451,4.05379268,2480.7,2479.9,4.5214]
[1724818220149,4.05379268,2480.7,2480.0,4.63353324]
[1724818220357,4.04,2480.8,2480.1,0.08063324]
[1724818220557,4.05379268,2481.1,2480.1,4.5529]
[1724818220729,4.05379268,2481.1,2480.3,4.5529]
[1724818221049,4.05379268,2481.1,2480.3,4.63352508]
[1724818221210,0.78950841,2481.3,2480.3,4.5529]
[1724818221211,4.05379268,2480.9,2480.3,4.5529]
[1724818222413,4.05379268,2481.1,2480.3,4.5529]
[1724818222612,4.05379268,2481.1,2480.5,4.8354]
[1724818224559,4.05379268,2481.5,2480.7,4.8114]
[1724818224727,4.05379268,2481.5,2480.9,4.8114]
[1724818226967,4.05379268,2481.9,2480.9,4.89200258]
[1724818227172,4.05379268,2482.1,2480.9,4.89200258]
[1724818227490,4.05379268,2482.3,2481.1,4.9073]
[1724818227787,4.05379268,2482.3,2481.2,4.98788403]
[1724818227989,4.05379268,2482.3,2481.4,4.8547]
[1724818228306,4.05379268,2482.3,2481.6,4.8547]
[1724818230374,11.9417,2482.7,2481.6,4.8547]
[1724818230562,4.05379268,2482.3,2481.6,4.8547]
[1724818231479,4.05379268,2482.1,2481.6,4.8547]
[1724818241642,4.05379268,2481.9,2481.6,4.8547]
[1724818243923,4.05379268,2482.1,2481.6,4.8547]
[1724818245519,4.05379268,2481.9,2481.6,4.8547]
[1724818245724,4.05379268,2481.7,2481.4,6.54645182]
[1724818245910,4.05379268,2481.7,2480.1,4.05379268]
[1724818245911,4.05379268,2481.5,2480.9,4.8457]
[1724818246112,4.05379268,2481.5,2481.0,1.13921518]
[1724818247355,4.05379268,2481.3,2480.9,4.8457]
[1724818247518,4.05379268,2481.1,2480.9,4.8457]
[1724818247710,0.40537927,2481.0,2480.9,4.8457]
[1724818247953,4.05379268,2481.1,2480.9,4.8457]
[1724818250274,4.05379268,2481.3,2480.9,4.8457]
[1724818251395,4.05379268,2481.1,2480.4,4.7945]
[1724818251690,4.05379268,2481.1,2480.4,5.44914518]
[1724818252684,4.05379268,2480.9,2480.4,4.7945]
[1724818257911,4.05379268,2480.9,2480.1,6.54645182]
[1724818258323,4.05379268,2480.7,2480.1,6.54645182]
[1724818258619,4.05379268,2480.5,2480.1,6.54645182]
[1724818258792,4.05379268,2480.5,2479.5,12.42]
[1724818258793,4.05379268,2480.5,2479.8,6.54645182]
[1724818258995,4.05379268,2480.1,2479.2,6.54645182]
[1724818259316,4.05379268,2480.3,2479.2,6.54645182]
[1724818259515,4.05379268,2480.3,2479.3,1.40420658]
[1724818259743,4.05379268,2480.3,2479.2,6.54645182]
[1724818259910,4.05379268,2480.3,2479.3,2.14243766]
[1724818260219,4.05379268,2480.3,2479.3,0.73820063]
[1724818260426,4.05379268,2480.3,2479.4,1.40420108]
[1724818260606,4.05379268,2480.3,2479.3,0.73820063]
[1724818260917,4.05379268,2480.3,2479.4,1.40419971]
[1724818261112,4.05379268,2480.3,2479.5,0.21424003]
[1724818261283,7.44,2480.7,2479.3,0.73820063]
[1724818261284,4.05379268,2480.1,2479.3,0.73820063]
[1724818263191,4.05379268,2480.1,2479.4,1.40429307]
[1724818263408,4.05379268,2480.1,2479.3,1.57375513]
[1724818263581,4.05379268,2480.1,2479.4,2.2163568]
[1724818263780,4.05379268,2480.1,2479.4,0.8120207]
[1724818264482,4.05379268,2479.5,2479.1,0.8355545]
[1724818264685,3.21117715,2479.5,2479.0,6.54645182]
[1724818264924,4.05379268,2479.7,2479.0,6.54645182]
[1724818265227,4.05379268,2479.5,2479.0,6.54645182]
[1724818265380,4.05379268,2479.5,2479.1,0.65464518]
[1724818265583,4.05379268,2479.5,2478.6,6.54645182]
[1724818267886,2.49352306,2479.5,2478.6,6.54645182]
[1724818269618,4.05379268,2479.7,2478.6,6.54645182]
[1724818269816,4.05379268,2479.7,2478.7,0.73531902]
[1724818270015,4.05379268,2479.7,2478.7,0.65464518]
[1724818271228,4.05379268,2479.7,2478.8,0.08066738]
[1724818271520,4.05379268,2479.7,2478.7,2.65464518]
[1724818271719,4.05379268,2479.7,2478.8,1.00077411]
[1724818272220,4.05379268,2479.9,2478.8,1.00077411]
[1724818272425,4.05379268,2479.7,2478.8,0.9201097]
[1724818272623,4.05379268,2479.7,2478.9,0.29201097]
[1724818273488,4.05379268,2479.9,2478.9,0.29201097]
[1724818275015,4.05379268,2479.7,2478.9,0.29201097]
[1724818276623,4.05379268,2479.7,2479.0,0.08066546]
[1724818277540,4.05379268,2479.9,2478.9,0.29201097]
[1724818277737,4.05379268,2479.7,2479.0,0.08066218]
[1724818278236,4.05379268,2479.9,2479.1,0.08065484]
[1724818278912,4.05379268,2479.9,2479.0,0.78392347]
[1724818279101,4.05379268,2479.7,2479.0,0.78392347]
[1724818279302,4.05379268,2479.7,2479.1,0.76223863]
[1724818279836,4.05379268,2479.7,2479.2,0.0806595]
[1724818280525,8.82289268,2479.7,2479.1,0.76223863]
[1724818281533,4.7691,2479.7,2479.1,0.76223863]
[1724818281758,4.7691,2479.7,2479.2,0.63891621]
[1724818281897,4.7691,2479.7,2479.2,0.71957511]
[1724818283035,4.7011,2480.7,2479.3,5.05315486]
[1724818283368,4.05379268,2480.4,2479.5,6.54645182]
[1724818283584,4.7011,2480.3,2479.6,0.65464518]
[1724818283722,4.7011,2480.3,2479.7,0.08063832]
[1724818284765,8.90949268,2480.6,2479.7,4.98343832]
[1724818285075,8.90949268,2480.6,2479.8,0.08063016]
[1724818288649,8.90949268,2480.6,2479.8,0.07833016]
[1724818288973,8.90949268,2480.6,2479.7,5.63097353]
[1724818290725,8.90949268,2480.6,2479.8,0.0806302]
[1724818290947,8.90949268,2480.6,2479.8,0.71725509]
[1724818291760,4.05379268,2480.4,2479.8,0.63662489]
[1724818292328,4.05379268,2480.2,2479.6,0.65464518]
[1724818292541,4.05379268,2480.2,2479.4,4.9906]
[1724818296873,4.9289,2480.3,2479.4,4.9906]
[1724818297580,4.9289,2480.3,2479.5,0.0806434]
[1724818297775,4.9289,2480.3,2479.5,0.58776774]
[1724818297995,4.9289,2480.3,2479.5,0.50712434]
[1724818300598,4.9289,2480.3,2479.7,4.8582]
[1724818300904,4.9289,2480.3,2479.8,0.08064027]
[1724818301326,8.73779268,2480.6,2479.8,0.08064027]
[1724818305496,5.0728,2480.9,2479.9,5.08743955]
[1724818305807,12.28,2481.8,2480.0,1.40377739]
[1724818305808,4.8493,2481.1,2480.0,1.40377739]
[1724818306030,4.05379268,2481.4,2480.3,4.7761]
[1724818306196,4.8493,2481.7,2480.6,4.05379268]
[1724818306392,5.05379268,2481.9,2480.8,4.7761]
[1724818306591,5.05379268,2481.9,2480.9,0.08059368]
[1724818306592,1.0,2481.9,2480.9,0.08059368]
[1724818306928,1.0,2481.9,2481.0,4.7761]
[1724818307130,5.05379268,2481.9,2481.1,0.0805907]
[1724818307292,5.05379268,2481.9,2481.1,0.56625977]
[1724818307493,3.52654076,2481.9,2481.1,0.56625977]
[1724818308536,4.8493,2482.0,2481.1,0.48566907]
[1724818308537,4.05379268,2481.7,2481.1,0.48566907]
[1724818309313,4.05379268,2481.7,2481.2,0.52617691]
[1724818314035,4.05379268,2481.7,2481.2,2.52617691]
[1724818315498,4.05379268,2481.7,2481.2,2.0]
[1724818315700,4.8493,2482.0,2481.2,2.0]
[1724818315701,4.05379268,2481.3,2481.2,2.0]
[1724818320757,8.64659268,2481.5,2481.2,2.0]
[1724818323168,4.05379268,2481.5,2481.2,2.0]
[1724818325036,4.05379268,2481.3,2481.2,2.0]
[1724818326051,4.45917195,2481.5,2481.2,2.0]
[1724818326229,4.05379268,2481.5,2481.2,2.0]
[1724818327561,9.28889268,2481.7,2481.2,2.0]
[1724818327772,4.05379268,2481.7,2481.2,2.0]
[1724818330336,4.05379268,2481.5,2481.2,2.0]
[1724818333641,4.05379268,2481.7,2481.3,4.8765]
[1724818335041,9.22549268,2482.1,2481.3,4.95709818]
[1724818335245,4.05379268,2481.9,2481.4,0.69570982]
[1724818339985,9.31439268,2481.7,2481.2,8.54645182]
[1724818340161,4.05379268,2481.5,2481.2,8.54645182]
[1724818340364,4.05379268,2481.5,2481.2,2.0]
[1724818340783,4.05379268,2481.3,2481.2,2.0]
[1724818342093,9.09859268,2481.3,2481.2,2.0]
[1724818342387,4.05379268,2481.3,2481.2,2.0]
[1724818342610,4.05379268,2481.5,2481.2,2.0]
[1724818345389,4.05379268,2481.3,2481.2,2.0]
[1724818349181,4.05379268,2481.5,2481.2,2.0]
[1724818349489,4.05379268,2481.5,2481.2,1.74526021]
[1724818350921,4.05379268,2481.3,2481.2,1.74526021]
[1724818351218,9.41429268,2481.3,2481.2,1.74526021]
[1724818352199,4.05379268,2481.3,2481.2,1.74526021]
[1724818352407,4.05379268,2481.3,2480.9,5.2763]
[1724818352711,4.05379268,2481.5,2480.9,5.80393]
[1724818353017,4.05379268,2481.5,2480.9,5.2763]
[1724818356617,4.05379268,2481.5,2480.9,7.0423]
[1724818361325,7.44,2481.8,2481.0,4.93190722]
[1724818361522,7.44,2481.8,2481.2,4.8513]
[1724818361838,4.05379268,2481.9,2481.2,4.8513]
[1724818362331,4.05379268,2481.9,2481.3,0.08059204]
[1724818362506,4.05379268,2481.9,2481.4,5.0517]
[1724818362704,4.05379268,2482.0,2481.4,5.5649292]
[1724818362894,4.9786,2482.2,2481.4,5.5649292]
[1724818363228,4.05379268,2482.0,2481.4,5.5649292]
[1724818363434,4.05379268,2482.0,2481.5,0.56455212]
[1724818364236,0.42202444,2481.9,2481.5,0.56455212]